fUSD/lending_fUSD_20260629
["ID","MTS","AMOUNT","RATE_DAILY","PERIOD"]
[426692558,1782747050000,-150.0,0.00034027,30]
[426692560,1782747050000,-785.0,0.00034028,2]
[426692536,1782747050000,-300.0,0.00033751,2]
[426692561,1782747050000,-785.0,0.00034028,2]
[426692553,1782747050000,-150.0,0.00033929,30]
[426692538,1782747050000,-186.2511962,0.00033754,60]
[426692521,1782747050000,-311.22255108,0.00033751,2]
[426692534,1782747050000,-454.26701287,0.00033751,2]
[426692563,1782747050000,-151.09934801,0.00034041,2]
[426692511,1782747050000,-300.0,0.00033751,2]
[426692510,1782747050000,-300.0,0.00033751,2]
[426692513,1782747050000,-300.0,0.00033751,2]
[426692512,1782747050000,-300.0,0.00033751,2]
[426692514,1782747050000,-954.30228826,0.00033751,2]
[426692517,1782747050000,-300.0,0.00033751,2]
[426692516,1782747050000,-300.0,0.00033751,2]
[426692520,1782747050000,-300.0,0.00033751,2]
[426692518,1782747050000,-576.43989485,0.00033751,2]
[426692519,1782747050000,-301.13264823,0.00033751,2]
[426692537,1782747050000,-300.0,0.00033751,2]
[426692515,1782747050000,-1807.30940739,0.00033751,2]
[426692532,1782747050000,-584.66801755,0.00033751,2]
[426692523,1782747050000,-569.01654071,0.00033751,2]
[426692527,1782747050000,-300.0,0.00033751,2]
[426692524,1782747050000,-300.0,0.00033751,2]
[426692531,1782747050000,-300.0,0.00033751,2]
[426692526,1782747050000,-300.0,0.00033751,2]
[426692525,1782747050000,-300.0,0.00033751,2]
[426692529,1782747050000,-300.0,0.00033751,2]
[426692528,1782747050000,-300.0,0.00033751,2]
[426692530,1782747050000,-513.95923093,0.00033751,2]
[426692533,1782747050000,-300.0,0.00033751,2]
[426692522,1782747050000,-300.0,0.00033751,2]
[426692566,1782747050000,-150.0,0.00034087,30]
[426692559,1782747050000,-793.99279464,0.00034028,2]
[426692564,1782747050000,-13658.64786751,0.00034056,2]
[426692593,1782747050000,-5000.0,0.0003441,2]
[426692595,1782747050000,-5000.0,0.0003441,2]
[426692597,1782747050000,-150.0,0.00034492,120]
[426692596,1782747050000,-2280.56935788,0.00034425,7]
[426692594,1782747050000,-5000.0,0.0003441,2]
[426692598,1782747050000,-150.0,0.00034492,120]
[426692602,1782747050000,-151.0,0.00034573,7]
[426692599,1782747050000,-153.0,0.00034573,7]
[426692603,1782747050000,-151.0,0.00034573,7]
[426692600,1782747050000,-163.43448267,0.00034573,7]
[426692605,1782747050000,-168.94523899,0.00034573,7]
[426692584,1782747050000,-785.0,0.00034398,2]
[426692604,1782747050000,-151.0,0.00034573,7]
[426692607,1782747050000,-151.0,0.00034573,7]
[426692610,1782747050000,-386.0,0.0003458,30]
[426692606,1782747050000,-174.31195855,0.00034573,7]
[426692608,1782747050000,-151.0,0.00034573,7]
[426692609,1782747050000,-298.97416003,0.00034573,7]
[426692611,1782747050000,-150.0,0.00034594,120]
[426692614,1782747050000,-151.0,0.0003464,2]
[426692613,1782747050000,-150.0,0.00034619,120]
[426692612,1782747050000,-150.0,0.00034619,120]
[426692616,1782747050000,-156.02067132,0.0003464,2]
[426692562,1782747050000,-785.0,0.00034028,2]
[426692615,1782747050000,-1500.0,0.0003464,2]
[426692586,1782747050000,-785.0,0.00034398,2]
[426692601,1782747050000,-151.0,0.00034573,7]
[426692582,1782747050000,-785.0,0.00034398,2]
[426692585,1782747050000,-785.0,0.00034398,2]
[426692568,1782747050000,-150.0,0.00034175,30]
[426692569,1782747050000,-150.0,0.00034188,30]
[426692567,1782747050000,-333.83,0.00034154,120]
[426692571,1782747050000,-198.03,0.00034255,120]
[426692580,1782747050000,-785.0,0.00034398,2]
[426692570,1782747050000,-302.0,0.00034246,14]
[426692575,1782747050000,-150.0,0.00034323,120]
[426692573,1782747050000,-9116.0,0.00034269,5]
[426692576,1782747050000,-150.0,0.00034323,120]
[426692572,1782747050000,-841.69,0.00034265,7]
[426692577,1782747050000,-151.09934801,0.00034377,2]
[426692565,1782747050000,-150.0,0.00034087,30]
[426692591,1782747050000,-6896.2026673,0.0003441,2]
[426692574,1782747050000,-150.0,0.00034289,120]
[426692578,1782747050000,-150.0,0.00034391,120]
[426692579,1782747050000,-785.0,0.00034398,2]
[426692589,1782747050000,-1500.0,0.000344,7]
[426692592,1782747050000,-5000.0,0.0003441,2]
[426692583,1782747050000,-785.0,0.00034398,2]
[426692588,1782747050000,-1859.14,0.000344,30]
[426692587,1782747050000,-1580.07,0.000344,30]
[426692590,1782747050000,-2010.0,0.000344,7]
[426692581,1782747050000,-785.0,0.00034398,2]
[426692652,1782747051000,-200.0,0.00034929,7]
[426692654,1782747051000,-333.83,0.00034976,120]
[426692656,1782747051000,-227.09549037,0.00034989,2]
[426692651,1782747051000,-200.0,0.00034929,7]
[426692642,1782747051000,-1500.0,0.00034795,2]
[426692646,1782747051000,-202.91070771,0.00034804,15]
[426692648,1782747051000,-502.0,0.00034866,18]
[426692645,1782747051000,-599.17,0.000348,2]
[426692660,1782747051000,-150.0,0.00035,120]
[426692640,1782747051000,-1278.0,0.00034771,2]
[426692649,1782747051000,-150.0,0.00034898,120]
[426692650,1782747051000,-150.0,0.00034915,120]
[426692662,1782747051000,-192.27096766,0.00035,120]
[426692655,1782747051000,-5725.99032933,0.00034989,2]
[426692659,1782747051000,-150.0,0.00035,120]
[426692658,1782747051000,-224.0,0.00034995,2]
[426692657,1782747051000,-452.81055652,0.00034989,2]
[426692671,1782747051000,-259.0,0.00035,30]
[426692672,1782747051000,-1500.0,0.00035,2]
[426692661,1782747051000,-2811.8072,0.00035,2]
[426692665,1782747051000,-1500.0,0.00035,2]
[426692670,1782747051000,-2750.84293219,0.00035,2]
[426692667,1782747051000,-1500.0,0.00035,2]
[426692663,1782747051000,-446.04641037,0.00035,120]
[426692653,1782747051000,-200.0,0.00034929,7]
[426692643,1782747051000,-150.0,0.00034797,120]
[426692617,1782747051000,-1500.0,0.0003464,2]
[426692641,1782747051000,-1362.0,0.00034771,2]
[426692666,1782747051000,-1500.0,0.00035,2]
[426692620,1782747051000,-1500.0,0.0003464,2]
[426692618,1782747051000,-1500.0,0.0003464,2]
[426692619,1782747051000,-1500.0,0.0003464,2]
[426692625,1782747051000,-1500.0,0.0003464,2]
[426692622,1782747051000,-1500.0,0.0003464,2]
[426692624,1782747051000,-1500.0,0.0003464,2]
[426692627,1782747051000,-243.56566997,0.00034705,2]
[426692623,1782747051000,-1500.0,0.0003464,2]
[426692621,1782747051000,-1500.0,0.0003464,2]
[426692626,1782747051000,-150.0,0.00034695,120]
[426692647,1782747051000,-382.06,0.00034808,3]
[426692628,1782747051000,-158.66414406,0.00034711,7]
[426692631,1782747051000,-155.46756628,0.0003472,7]
[426692632,1782747051000,-155.79951858,0.00034727,7]
[426692630,1782747051000,-150.0,0.00034718,120]
[426692637,1782747051000,-398.0,0.00034733,30]
[426692636,1782747051000,-390.0,0.00034733,30]
[426692635,1782747051000,-151.0,0.00034728,30]
[426692633,1782747051000,-163.63306447,0.00034728,30]
[426692638,1782747051000,-716.7131547,0.00034768,2]
[426692634,1782747051000,-158.0,0.00034728,30]
[426692639,1782747051000,-283.0,0.00034771,2]
[426692644,1782747051000,-150.0,0.00034797,120]
[426692629,1782747051000,-151.09934801,0.00034713,2]
[426692669,1782747051000,-1251.1385,0.00035,2]
[426692719,1782747051000,-154.061996,0.00035455,7]
[426692668,1782747051000,-1500.0,0.00035,2]
[426692702,1782747051000,-2280.56935788,0.00035411,7]
[426692704,1782747051000,-303.96775211,0.00035419,2]
[426692706,1782747051000,-303.93073594,0.00035453,2]
[426692701,1782747051000,-150.0,0.00035405,120]
[426692705,1782747051000,-229.09517868,0.00035419,2]
[426692703,1782747051000,-2280.56935788,0.00035411,7]
[426692708,1782747051000,-37794.80781514,0.00035455,60]
[426692707,1782747051000,-100000.0,0.00035455,90]
[426692711,1782747051000,-151.0,0.00035455,30]
[426692710,1782747051000,-240.43609651,0.00035455,90]
[426692713,1782747051000,-151.0,0.00035455,30]
[426692700,1782747051000,-151.09934801,0.00035385,2]
[426692712,1782747051000,-151.0,0.00035455,30]
[426692717,1782747051000,-151.0,0.00035455,7]
[426692718,1782747051000,-151.0,0.00035455,7]
[426692722,1782747051000,-500.0,0.0003549,30]
[426692723,1782747051000,-500.0,0.0003549,30]
[426692725,1782747051000,-642.694,0.0003549,30]
[426692720,1782747051000,-158.5808304,0.00035455,90]
[426692716,1782747051000,-151.301244,0.00035455,7]
[426692715,1782747051000,-151.0,0.00035455,7]
[426692724,1782747051000,-500.0,0.0003549,30]
[426692721,1782747051000,-152.5325826,0.00035457,15]
[426692664,1782747051000,-1500.0,0.00035,2]
[426692714,1782747051000,-218.23034,0.00035455,30]
[426692699,1782747051000,-151.0,0.00035366,7]
[426692709,1782747051000,-69890.74244101,0.00035455,30]
[426692696,1782747051000,-151.0,0.00035366,7]
[426692673,1782747051000,-437.37,0.00035,7]
[426692695,1782747051000,-13658.64786751,0.00035355,2]
[426692677,1782747051000,-150.0,0.00035063,120]
[426692675,1782747051000,-1500.0,0.00035012,2]
[426692676,1782747051000,-151.09934801,0.00035049,2]
[426692682,1782747051000,-150.0,0.00035101,120]
[426692678,1782747051000,-3663.0,0.00035076,10]
[426692683,1782747051000,-150.0,0.00035112,120]
[426692679,1782747051000,-151.0,0.00035097,7]
[426692680,1782747051000,-151.0,0.00035097,7]
[426692684,1782747051000,-5800.0,0.00035123,2]
[426692674,1782747051000,-1500.0,0.00035,2]
[426692685,1782747051000,-5800.0,0.00035131,2]
[426692689,1782747051000,-150.0,0.00035211,120]
[426692691,1782747051000,-2000.0,0.00035287,7]
[426692681,1782747051000,-40038.0934745,0.00035097,2]
[426692692,1782747051000,-200.0,0.000353,11]
[426692694,1782747051000,-2478.2374671,0.00035347,2]
[426692693,1782747051000,-150.0,0.00035304,120]
[426692690,1782747051000,-401.448,0.00035259,7]
[426692686,1782747051000,-5800.0,0.0003514,2]
[426692697,1782747051000,-151.0,0.00035366,7]
[426692698,1782747051000,-152.0,0.00035366,7]
[426692687,1782747051000,-676.82,0.00035165,30]
[426692688,1782747051000,-150.0,0.00035203,120]
[426692767,1782747052000,-500.0,0.00035531,2]
[426692763,1782747052000,-500.0,0.00035531,2]
[426692766,1782747052000,-500.0,0.00035531,2]
[426692778,1782747052000,-500.0,0.00035531,2]
[426692764,1782747052000,-500.0,0.00035531,2]
[426692759,1782747052000,-500.0,0.00035531,2]
[426692761,1782747052000,-500.0,0.00035531,2]
[426692758,1782747052000,-500.0,0.00035531,2]
[426692755,1782747052000,-500.0,0.00035531,2]
[426692757,1782747052000,-500.0,0.00035531,2]
[426692768,1782747052000,-500.0,0.00035531,2]
[426692765,1782747052000,-500.0,0.00035531,2]
[426692762,1782747052000,-500.0,0.00035531,2]
[426692784,1782747052000,-500.0,0.00035531,2]
[426692770,1782747052000,-500.0,0.00035531,2]
[426692771,1782747052000,-500.0,0.00035531,2]
[426692772,1782747052000,-500.0,0.00035531,2]
[426692774,1782747052000,-151.0,0.00035531,7]
[426692781,1782747052000,-500.0,0.00035531,2]
[426692777,1782747052000,-500.0,0.00035531,2]
[426692773,1782747052000,-500.0,0.00035531,2]
[426692782,1782747052000,-500.0,0.00035531,2]
[426692775,1782747052000,-500.0,0.00035531,2]
[426692783,1782747052000,-500.0,0.00035531,2]
[426692776,1782747052000,-500.0,0.00035531,2]
[426692756,1782747052000,-500.0,0.00035531,2]
[426692769,1782747052000,-500.0,0.00035531,2]
[426692751,1782747052000,-500.0,0.00035531,2]
[426692727,1782747052000,-1859.14,0.000355,30]
[426692752,1782747052000,-500.0,0.00035531,2]
[426692726,1782747052000,-1580.07,0.000355,30]
[426692728,1782747052000,-200.0,0.00035504,10]
[426692730,1782747052000,-296.29301605,0.00035507,120]
[426692731,1782747052000,-150.0,0.00035507,120]
[426692729,1782747052000,-150.0,0.00035507,120]
[426692733,1782747052000,-150.0,0.00035507,120]
[426692734,1782747052000,-150.0,0.00035507,120]
[426692736,1782747052000,-271.59492068,0.00035507,120]
[426692732,1782747052000,-150.0,0.00035507,120]
[426692735,1782747052000,-150.0,0.00035507,120]
[426692737,1782747052000,-4119.0554933,0.0003552,3]
[426692738,1782747052000,-481661.23557258,0.00035524,2]
[426692749,1782747052000,-500.0,0.00035531,2]
[426692742,1782747052000,-500.0,0.00035531,2]
[426692743,1782747052000,-500.0,0.00035531,2]
[426692739,1782747052000,-161.244745,0.00035524,7]
[426692748,1782747052000,-500.0,0.00035531,2]
[426692744,1782747052000,-500.0,0.00035531,2]
[426692741,1782747052000,-195935.15883406,0.00035531,2]
[426692746,1782747052000,-500.0,0.00035531,2]
[426692740,1782747052000,-153.375993,0.00035524,7]
[426692747,1782747052000,-500.0,0.00035531,2]
[426692750,1782747052000,-500.0,0.00035531,2]
[426692760,1782747052000,-500.0,0.00035531,2]
[426692754,1782747052000,-500.0,0.00035531,2]
[426692753,1782747052000,-500.0,0.00035531,2]
[426692745,1782747052000,-500.0,0.00035531,2]
[426692780,1782747052000,-500.0,0.00035531,2]
[426692797,1782747052000,-955.7894778,0.00035614,120]
[426692785,1782747052000,-500.0,0.00035531,2]
[426692819,1782747052000,-265.274564,0.00035616,30]
[426692810,1782747052000,-160.892351,0.00035616,30]
[426692815,1782747052000,-151.0,0.00035616,30]
[426692820,1782747052000,-151.0,0.00035616,30]
[426692823,1782747052000,-221.152729,0.00035616,30]
[426692822,1782747052000,-151.0,0.00035616,30]
[426692830,1782747052000,-500.0,0.00035754,2]
[426692824,1782747052000,-294.03838,0.00035616,30]
[426692821,1782747052000,-151.0,0.00035616,30]
[426692825,1782747052000,-189.0,0.00035672,11]
[426692829,1782747052000,-151.09934801,0.00035721,2]
[426692831,1782747052000,-2336.0,0.0003576,11]
[426692813,1782747052000,-151.0,0.00035616,30]
[426692826,1782747052000,-276.88662764,0.00035672,120]
[426692828,1782747052000,-159.06645113,0.0003571,30]
[426692832,1782747052000,-500.0,0.00035764,30]
[426692834,1782747052000,-500.0,0.00035764,30]
[426692833,1782747052000,-500.0,0.00035764,30]
[426692837,1782747052000,-500.0,0.00035764,30]
[426692835,1782747052000,-500.0,0.00035764,30]
[426692836,1782747052000,-500.0,0.00035764,30]
[426692840,1782747052000,-644.59,0.00035766,2]
[426692838,1782747052000,-396.29,0.00035766,2]
[426692842,1782747052000,-644.6,0.00035766,2]
[426692841,1782747052000,-151.0,0.00035766,2]
[426692779,1782747052000,-500.0,0.00035531,2]
[426692827,1782747052000,-150.0,0.00035702,2]
[426692814,1782747052000,-151.0,0.00035616,30]
[426692839,1782747052000,-185.28,0.00035766,2]
[426692812,1782747052000,-151.0,0.00035616,30]
[426692811,1782747052000,-151.0,0.00035616,30]
[426692789,1782747052000,-151.0,0.00035531,7]
[426692791,1782747052000,-1500.0,0.00035557,2]
[426692790,1782747052000,-350.0,0.00035541,38]
[426692794,1782747052000,-150.0,0.00035612,60]
[426692786,1782747052000,-499.655273,0.00035531,2]
[426692792,1782747052000,-347.0,0.000356,7]
[426692793,1782747052000,-174.0,0.000356,7]
[426692795,1782747052000,-186.2511961,0.00035614,120]
[426692787,1782747052000,-151.0,0.00035531,7]
[426692796,1782747052000,-152.5674493,0.00035614,120]
[426692800,1782747052000,-203.789796,0.00035616,30]
[426692799,1782747052000,-151.0,0.00035616,30]
[426692788,1782747052000,-151.0,0.00035531,7]
[426692798,1782747052000,-176.4163441,0.00035614,120]
[426692801,1782747052000,-151.0,0.00035616,30]
[426692818,1782747052000,-265.274564,0.00035616,30]
[426692808,1782747052000,-151.0,0.00035616,30]
[426692806,1782747052000,-151.0,0.00035616,7]
[426692816,1782747052000,-265.274564,0.00035616,30]
[426692809,1782747052000,-151.0,0.00035616,30]
[426692802,1782747052000,-166.664109,0.00035616,30]
[426692803,1782747052000,-170.554702,0.00035616,30]
[426692804,1782747052000,-151.0,0.00035616,30]
[426692805,1782747052000,-151.0,0.00035616,30]
[426692807,1782747052000,-151.0,0.00035616,30]
[426692817,1782747052000,-265.274564,0.00035616,30]
[426692866,1782747053000,-185.28,0.00035766,2]
[426692878,1782747053000,-185.28,0.00035766,2]
[426692871,1782747053000,-482.62,0.00035766,2]
[426692873,1782747053000,-248.74,0.00035766,2]
[426692882,1782747053000,-185.28,0.00035766,2]
[426692876,1782747053000,-248.74,0.00035766,2]
[426692874,1782747053000,-151.0,0.00035766,2]
[426692881,1782747053000,-644.59,0.00035766,2]
[426692872,1782747053000,-644.59,0.00035766,2]
[426692877,1782747053000,-151.0,0.00035766,2]
[426692892,1782747053000,-200.0,0.0003589,2]
[426692879,1782747053000,-185.28,0.00035766,2]
[426692880,1782747053000,-482.64,0.00035766,2]
[426692884,1782747053000,-333.83,0.00035798,120]
[426692865,1782747053000,-248.74,0.00035766,2]
[426692893,1782747053000,-200.0,0.0003589,2]
[426692894,1782747053000,-400.0,0.000359,13]
[426692885,1782747053000,-500.0,0.000358,60]
[426692883,1782747053000,-236.53807036,0.0003579,2]
[426692886,1782747053000,-2290.0,0.000358,30]
[426692888,1782747053000,-243.94,0.00035811,3]
[426692889,1782747053000,-192.17834783,0.00035811,3]
[426692875,1782747053000,-185.28,0.00035766,2]
[426692864,1782747053000,-248.74,0.00035766,2]
[426692863,1782747053000,-644.59,0.00035766,2]
[426692868,1782747053000,-151.76,0.00035766,2]
[426692887,1782747053000,-502.0,0.00035806,19]
[426692844,1782747053000,-151.22,0.00035766,2]
[426692843,1782747053000,-248.74,0.00035766,2]
[426692848,1782747053000,-248.74,0.00035766,2]
[426692845,1782747053000,-577.25,0.00035766,2]
[426692846,1782747053000,-151.0,0.00035766,2]
[426692851,1782747053000,-482.63,0.00035766,2]
[426692847,1782747053000,-248.74,0.00035766,2]
[426692850,1782747053000,-185.28,0.00035766,2]
[426692849,1782747053000,-248.74,0.00035766,2]
[426692869,1782747053000,-185.28,0.00035766,2]
[426692852,1782747053000,-185.28,0.00035766,2]
[426692856,1782747053000,-248.74,0.00035766,2]
[426692854,1782747053000,-573.89,0.00035766,2]
[426692857,1782747053000,-642.61,0.00035766,2]
[426692858,1782747053000,-185.28,0.00035766,2]
[426692860,1782747053000,-644.59,0.00035766,2]
[426692870,1782747053000,-248.74,0.00035766,2]
[426692859,1782747053000,-151.0,0.00035766,2]
[426692861,1782747053000,-151.0,0.00035766,2]
[426692862,1782747053000,-151.0,0.00035766,2]
[426692867,1782747053000,-151.0,0.00035766,2]
[426692853,1782747053000,-185.31,0.00035766,2]
[426692890,1782747053000,-232984.29552561,0.0003589,30]
[426692855,1782747053000,-185.28,0.00035766,2]
[426692895,1782747053000,-163.0,0.0003597,98]
[426692928,1782747053000,-2336.0,0.00036264,11]
[426692924,1782747053000,-160.0,0.00036236,11]
[426692929,1782747053000,-10450.12149638,0.00036279,2]
[426692923,1782747053000,-160.0,0.00036236,11]
[426692930,1782747053000,-1500.0,0.00036299,2]
[426692926,1782747053000,-200.0,0.00036249,2]
[426692927,1782747053000,-1858.05655181,0.0003625,7]
[426692933,1782747053000,-2336.0,0.00036312,11]
[426692931,1782747053000,-1500.0,0.00036299,2]
[426692922,1782747053000,-224.2,0.00036187,2]
[426692925,1782747053000,-200.0,0.00036249,2]
[426692932,1782747053000,-2336.0,0.00036301,11]
[426692934,1782747053000,-150.0,0.00036318,7]
[426692937,1782747053000,-160.0,0.00036335,11]
[426692936,1782747053000,-160.0,0.00036335,11]
[426692938,1782747053000,-2336.0,0.00036335,11]
[426692939,1782747053000,-2336.0,0.0003634,11]
[426692941,1782747053000,-2336.0,0.00036341,11]
[426692943,1782747053000,-607.06,0.0003635,2]
[426692942,1782747053000,-2336.0,0.0003635,11]
[426692944,1782747053000,-182.12,0.0003635,2]
[426692891,1782747053000,-1049.24340804,0.0003589,2]
[426692935,1782747053000,-160.0,0.00036329,11]
[426692921,1782747053000,-2739.88914127,0.0003618,30]
[426692940,1782747053000,-160.0,0.00036341,11]
[426692917,1782747053000,-178.277121,0.00036116,120]
[426692916,1782747053000,-215.45454545,0.0003611,7]
[426692902,1782747053000,-6814.0,0.00036,106]
[426692900,1782747053000,-282.0,0.00036,30]
[426692904,1782747053000,-160.0,0.00036,3]
[426692896,1782747053000,-212.0,0.00036,30]
[426692897,1782747053000,-11237.90699933,0.00036,30]
[426692901,1782747053000,-800.0,0.00036,7]
[426692905,1782747053000,-5120.0,0.00036,30]
[426692899,1782747053000,-199.95381872,0.00036,120]
[426692907,1782747053000,-160.0,0.00036021,11]
[426692906,1782747053000,-8994.0,0.00036005,5]
[426692898,1782747053000,-549.36055093,0.00036,120]
[426692909,1782747053000,-160.0,0.00036032,11]
[426692903,1782747053000,-259.0,0.00036,30]
[426692914,1782747053000,-446.04641037,0.000361,120]
[426692912,1782747053000,-200.0,0.00036072,10]
[426692915,1782747053000,-1500.0,0.00036103,2]
[426692911,1782747053000,-151.09934801,0.00036057,2]
[426692913,1782747053000,-224.2,0.00036087,2]
[426692910,1782747053000,-2336.0,0.00036032,11]
[426692919,1782747053000,-391.6,0.00036151,10]
[426692908,1782747053000,-160.0,0.0003603,11]
[426692920,1782747053000,-160.0,0.00036158,11]
[426692918,1782747053000,-1408.0,0.00036132,11]
[426692965,1782747054000,-2336.0,0.00036492,11]
[426692970,1782747054000,-800.0,0.000365,7]
[426692966,1782747054000,-2336.0,0.00036492,11]
[426692967,1782747054000,-151.0,0.00036497,14]
[426692973,1782747054000,-400.0,0.000365,13]
[426692971,1782747054000,-1580.07,0.000365,30]
[426692968,1782747054000,-44664.35839246,0.00036499,2]
[426692975,1782747054000,-151.0,0.000365,30]
[426692972,1782747054000,-1859.14,0.000365,30]
[426692976,1782747054000,-151.0,0.000365,30]
[426692985,1782747054000,-248.74,0.00036588,2]
[426692986,1782747054000,-644.59,0.00036588,2]
[426692979,1782747054000,-151.0,0.000365,30]
[426692964,1782747054000,-350.0,0.00036442,41]
[426692981,1782747054000,-234.949458,0.00036506,108]
[426692974,1782747054000,-151.0,0.000365,30]
[426692969,1782747054000,-678908.82550006,0.000365,36]
[426692953,1782747054000,-310.77200975,0.00036369,120]
[426692961,1782747054000,-163.0606429,0.000364,2]
[426692978,1782747054000,-151.0,0.000365,30]
[426692945,1782747054000,-1381.0,0.00036356,11]
[426692947,1782747054000,-500.0,0.00036369,120]
[426692948,1782747054000,-500.0,0.00036369,120]
[426692949,1782747054000,-500.0,0.00036369,120]
[426692946,1782747054000,-500.0,0.00036369,120]
[426692951,1782747054000,-500.0,0.00036369,120]
[426692950,1782747054000,-500.0,0.00036369,120]
[426692952,1782747054000,-500.0,0.00036369,120]
[426692954,1782747054000,-260.0,0.00036384,40]
[426692956,1782747054000,-459.0,0.00036399,30]
[426692955,1782747054000,-151.09934801,0.00036393,2]
[426692957,1782747054000,-451.0,0.00036399,30]
[426692963,1782747054000,-150.0,0.00036438,60]
[426692959,1782747054000,-103963.47879846,0.000364,2]
[426692960,1782747054000,-161.14240609,0.000364,60]
[426692962,1782747054000,-171.65686762,0.000364,2]
[426692958,1782747054000,-451.0,0.00036399,30]
[426692982,1782747054000,-163.06064285,0.00036552,2]
[426692977,1782747054000,-151.0,0.000365,30]
[426692983,1782747054000,-185.28,0.00036588,2]
[426693008,1782747054000,-644.59,0.00036635,2]
[426693007,1782747054000,-185.28,0.00036635,2]
[426693009,1782747054000,-644.59,0.00036635,2]
[426693010,1782747054000,-573.46,0.00036635,2]
[426693012,1782747054000,-482.62,0.00036635,2]
[426693013,1782747054000,-200.0,0.0003664,10]
[426693015,1782747054000,-1500.0,0.00036648,2]
[426693006,1782747054000,-248.75,0.00036635,2]
[426693014,1782747054000,-151.0,0.00036644,2]
[426693017,1782747054000,-151.0,0.00036649,7]
[426693016,1782747054000,-160.0,0.00036649,11]
[426693018,1782747054000,-151.0,0.00036649,7]
[426693020,1782747054000,-163.0,0.0003667,120]
[426693019,1782747054000,-2336.0,0.00036661,11]
[426693021,1782747054000,-160.0,0.00036676,11]
[426692980,1782747054000,-151.0,0.000365,30]
[426693011,1782747054000,-482.62,0.00036635,2]
[426693004,1782747054000,-185.28,0.00036635,2]
[426693022,1782747054000,-400.0,0.000367,13]
[426692997,1782747054000,-400.0,0.000366,13]
[426692984,1782747054000,-185.28,0.00036588,2]
[426693001,1782747054000,-185.28,0.00036635,2]
[426692987,1782747054000,-151.0,0.00036588,2]
[426692988,1782747054000,-151.78,0.00036588,2]
[426692989,1782747054000,-644.59,0.00036588,2]
[426692992,1782747054000,-185.28,0.00036588,2]
[426692993,1782747054000,-644.6,0.00036588,2]
[426692990,1782747054000,-248.75,0.00036588,2]
[426692991,1782747054000,-248.75,0.00036588,2]
[426692995,1782747054000,-185.28,0.00036588,2]
[426692996,1782747054000,-226.4,0.000366,31]
[426692998,1782747054000,-200.0,0.00036611,2]
[426693000,1782747054000,-185.28,0.00036635,2]
[426692999,1782747054000,-333.83,0.0003662,120]
[426693005,1782747054000,-482.62,0.00036635,2]
[426693002,1782747054000,-248.74,0.00036635,2]
[426692994,1782747054000,-644.59,0.00036588,2]
[426693003,1782747054000,-644.64,0.00036635,2]
[426693064,1782747055000,-800.0,0.00037,45]
[426693058,1782747055000,-956.74466435,0.00036986,120]
[426693062,1782747055000,-800.0,0.00037,45]
[426693060,1782747055000,-150.0,0.00036986,60]
[426693059,1782747055000,-956.74466435,0.00036986,120]
[426693061,1782747055000,-300.0,0.00036999,10]